bitfinex/quotes_ETHUSD_20220202
["timestamp","ask_amount","ask_price","bid_price","bid_amount"]
[1643787651710,0.00080627,2757.9,2757.7,0.68665954]
[1643787652110,0.00080627,2757.9,2757.8,2.18149]
[1643787652311,6.4685,2758.6,2757.8,2.18149]
[1643787652312,3.1903,2758.6,2757.8,2.48149]
[1643787652511,0.68422706,2758.8,2758.0,0.90636]
[1643787652749,0.68422706,2758.9,2758.1,0.25]
[1643787654153,1.59332118,2759.0,2758.1,0.25]
[1643787654154,0.68422706,2758.5,2758.1,0.25]
[1643787654361,0.68422706,2758.4,2758.1,0.25]
[1643787655151,1.59096706,2758.4,2758.1,0.25]
[1643787655351,1.05730273,2758.3,2758.1,0.25]
[1643787655553,0.22307567,2758.3,2758.1,0.25]
[1643787658212,1.86040065,2758.2,2758.1,0.25]
[1643787658414,2.38440065,2758.2,2758.1,0.25]
[1643787658808,2.70017359,2758.2,2757.4,0.25]
[1643787659010,1.17617359,2758.1,2757.4,0.6864549]
[1643787659208,1.17617359,2758.1,2757.2,1.5068]
[1643787659209,1.17617359,2758.0,2757.2,1.03881853]
[1643787659409,1.17617359,2757.9,2757.4,0.25]
[1643787659616,1.524,2758.1,2757.4,0.25]
[1643787659617,1.17617359,2757.8,2757.4,0.25]
[1643787659908,1.17617359,2757.7,2757.4,0.25]
[1643787660113,1.17617359,2757.6,2757.4,0.25]
[1643787660347,1.14149537,2757.5,2757.4,0.25]
[1643787661047,1.0,2758.1,2757.4,0.25]
[1643787661251,1.17145365,2758.0,2757.4,0.25]
[1643787665298,1.17145365,2758.0,2757.4,1.15671]
[1643787665698,1.17145365,2758.0,2757.4,1.45671]
[1643787666299,1.17145365,2758.0,2757.4,2.23968982]
[1643787666796,1.17145365,2758.0,2757.5,0.3]
[1643787668250,1.1512,2758.2,2757.5,2.24579688]
[1643787668251,1.17145365,2758.1,2757.5,2.24579688]
[1643787668448,1.14164092,2758.0,2757.5,4.05897688]
[1643787668649,1.1512,2758.2,2757.6,0.3]
[1643787668850,1.14168374,2758.1,2757.6,0.3]
[1643787669051,1.14168374,2758.0,2757.7,0.90656]
[1643787669253,0.1812,2758.6,2757.9,0.3]
[1643787669451,1.1416853,2758.5,2757.9,0.3]
[1643787669650,1.1416853,2758.5,2758.0,0.25]
[1643787670652,0.42757664,2758.4,2758.0,0.25]
[1643787670857,1.1416853,2758.3,2758.0,0.25]
[1643787672508,1.1416853,2758.3,2757.6,0.90663]
[1643787672722,0.0129889,2758.0,2756.8,3.763]
[1643787672918,1.3228853,2757.9,2756.8,3.763]
[1643787673112,1.1416853,2757.8,2756.8,3.763]
[1643787673510,1.56386792,2757.8,2756.8,3.763]
[1643787673913,2.47078792,2757.8,2756.7,4.2891951]
[1643787674110,1.3228853,2757.7,2756.7,4.0391951]
[1643787674312,1.1416853,2757.6,2756.7,4.0391951]
[1643787674911,1.1416853,2757.6,2756.7,2.0391951]
[1643787675251,1.1812,2757.7,2756.7,2.0391951]
[1643787675252,0.3228853,2757.7,2756.7,2.3391951]
[1643787675456,1.51040262,2757.8,2756.7,2.3391951]
[1643787675850,1.51040262,2757.8,2756.7,2.6391951]
[1643787676054,0.60348262,2757.8,2756.7,4.57394472]
[1643787676252,0.60348262,2757.8,2756.9,0.3]
[1643787676253,0.1813,2757.8,2756.9,0.3]
[1643787676553,4.6995,2757.9,2757.0,0.4811]
[1643787677351,1.0,2757.8,2757.0,0.4811]
[1643787680807,1.0,2757.8,2757.0,0.1811]
[1643787681211,1.0,2757.8,2757.0,1.38791]
[1643787681408,1.0,2757.8,2757.0,1.20681]
[1643787681612,1.68220828,2757.8,2757.0,0.90681]
[1643787681809,1.68220828,2757.8,2757.0,0.3]
[1643787682009,1.68220828,2757.8,2756.9,0.1812]
[1643787682010,0.68220828,2757.7,2756.9,0.1812]
[1643787682611,0.35321432,2757.6,2756.9,0.1812]
[1643787682855,0.68220828,2757.5,2756.9,0.1812]
[1643787683062,0.68220828,2757.5,2756.8,0.1812]
[1643787683458,0.68220828,2757.6,2756.8,0.1812]
[1643787683659,0.68220828,2757.7,2756.8,2.15683805]
[1643787685057,0.68220828,2757.6,2756.8,2.15683805]
[1643787685254,0.68220828,2757.6,2757.0,0.90681]
[1643787685455,0.68220828,2757.7,2757.0,0.90681]
[1643787685662,0.68220828,2757.6,2757.0,0.90681]
[1643787687312,0.53220828,2757.6,2757.0,0.90681]
[1643787692657,0.53220828,2757.6,2757.0,1.20681]
[1643787693365,0.53220828,2757.6,2757.0,0.3]
[1643787693559,1.91450362,2757.8,2757.0,0.3]
[1643787693758,2.09570362,2757.8,2756.8,1.38801]
[1643787694197,2.09570362,2757.8,2756.8,1.8220917]
[1643787694598,1.1812,2757.8,2756.8,1.8220917]
[1643787694803,1.1812,2757.8,2757.0,0.90682]
[1643787695202,1.12693291,2757.7,2757.1,0.39972674]
[1643787697305,0.68807558,2757.6,2757.1,0.39972674]
[1643787698557,1.12693291,2757.7,2757.2,1.63098065]
[1643787698558,1.81500849,2757.7,2757.2,1.63098065]
[1643787698751,1.12693291,2757.6,2757.3,2.53860416]
[1643787698953,0.86927558,2758.0,2757.4,0.39972674]
[1643787698954,1.12693291,2757.9,2757.4,0.39972674]
[1643787699155,1.12866178,2757.8,2757.4,0.39972674]
[1643787699361,0.68807558,2757.9,2757.4,0.39972674]
[1643787699362,1.12866178,2757.7,2757.4,0.39972674]
[1643787699555,1.12866178,2757.6,2757.5,0.35192634]
[1643787699756,0.68807558,2757.9,2757.5,0.75165308]
[1643787699954,0.68807558,2757.9,2757.5,0.35192634]
[1643787700156,1.12866178,2758.1,2757.6,0.398673]
[1643787700157,0.68807558,2758.0,2757.6,0.398673]
[1643787700361,0.68807558,2757.9,2757.7,0.39869386]
[1643787700558,0.68807558,2757.9,2757.5,0.35192634]
[1643787700757,0.68807558,2757.9,2757.6,0.39865502]
[1643787700957,0.68807558,2757.9,2757.7,0.39865418]
[1643787701162,0.68807558,2758.0,2757.8,0.39912884]
[1643787701361,0.68807558,2758.0,2757.4,0.90667]
[1643787701612,0.68807558,2757.8,2757.5,0.39909812]
[1643787702413,0.68807558,2757.8,2757.5,0.83978691]
[1643787702712,1.12786847,2757.7,2757.6,0.39909812]
[1643787703118,0.68807558,2757.9,2757.6,0.39909812]
[1643787703321,0.68807558,2757.9,2757.7,0.39909812]
[1643787703518,0.68807558,2757.9,2757.4,0.90667]
[1643787703722,0.68807558,2757.9,2757.5,0.73750501]
[1643787703933,0.68807558,2757.9,2757.6,0.39881271]
[1643787704117,1.12786847,2757.8,2757.6,0.39881271]
[1643787704316,1.12786847,2757.7,2757.6,0.39881271]
[1643787704718,0.68807558,2757.9,2757.6,0.39881271]
[1643787705117,1.81594405,2757.9,2757.6,0.39881271]
[1643787705365,1.12786847,2757.8,2757.6,0.39881271]
[1643787705572,1.12786847,2757.7,2757.6,0.39881271]
[1643787705968,1.12786847,2757.7,2757.5,0.39881271]
[1643787706168,0.68807558,2757.9,2757.6,0.39881271]
[1643787706375,0.68807558,2757.9,2757.7,0.39881271]
[1643787706573,0.68807558,2757.9,2757.4,0.90667]
[1643787706771,0.68807558,2757.9,2757.5,0.84307429]
[1643787706972,0.68807558,2757.9,2757.6,0.39806128]
[1643787707171,1.81675377,2757.9,2757.6,0.39806128]
[1643787707372,1.12867819,2757.8,2757.6,0.39806128]
[1643787707573,1.12867819,2757.7,2757.6,0.39806128]
[1643787707971,0.68807558,2757.9,2757.4,0.39806128]
[1643787708373,1.81675377,2757.9,2757.4,0.39806128]
[1643787708572,1.12867819,2757.8,2757.4,0.39806128]
[1643787708772,0.68807558,2757.9,2757.4,0.39806128]
[1643787708773,1.12867819,2757.7,2757.4,0.74274209]
[1643787709006,1.12867819,2757.6,2757.5,0.39806128]
[1643787709407,0.68807558,2757.9,2757.5,0.39806128]
[1643787710806,0.68807558,2758.0,2757.5,0.39806128]
[1643787711008,1.12867819,2757.8,2757.5,0.39806128]
[1643787711210,1.12867819,2757.7,2757.5,0.39806128]
[1643787711411,1.12867819,2757.6,2757.3,1.08789]
[1643787711615,1.12867819,2757.5,2757.4,0.39784583]
[1643787711815,1.12867819,2757.5,2757.4,0.77061349]
[1643787712010,1.81675377,2758.0,2757.4,0.77061349]
[1643787712212,1.12867819,2757.9,2757.5,0.39784583]
[1643787712413,0.68807558,2758.0,2757.5,0.39784583]
[1643787712414,1.12867819,2757.8,2757.5,0.39784583]
[1643787713052,1.12867819,2757.7,2757.5,0.39784583]
[1643787713254,1.12867819,2757.6,2757.5,0.39784583]
[1643787713452,1.81675377,2758.0,2757.5,0.39784583]
[1643787713853,1.12867819,2757.9,2757.5,0.39784583]
[1643787714053,1.12867819,2757.8,2757.5,0.39784583]
[1643787714260,1.12867819,2757.7,2757.5,0.39784583]
[1643787714453,0.68807558,2758.1,2757.6,0.39784583]
[1643787714653,1.82344282,2758.1,2757.7,0.39784583]
[1643787714855,0.68807558,2758.0,2757.3,1.4276235]
[1643787715060,0.68807558,2758.0,2757.4,0.39094198]
[1643787715359,1.82344282,2758.0,2757.4,0.39094198]
[1643787715559,1.13536724,2757.9,2757.4,0.39094198]
[1643787715759,1.1812,2758.2,2757.4,0.39094198]
[1643787715760,1.13536724,2757.8,2757.4,0.39094198]
[1643787715959,1.13536724,2757.7,2757.4,2.36025884]
[1643787716161,1.82344282,2758.1,2757.5,0.39094198]
[1643787716362,1.13536724,2758.0,2757.5,0.39094198]
[1643787716610,1.13536724,2757.9,2757.5,0.39094198]
[1643787716817,1.13536724,2757.8,2757.5,0.39094198]
[1643787717009,0.68807558,2758.1,2757.5,0.39094198]
[1643787717010,1.13536724,2757.7,2757.5,0.39094198]
[1643787717211,1.13536724,2757.6,2757.5,0.39094198]
[1643787717609,1.13536724,2757.6,2757.5,3.64094198]
[1643787717812,1.13536724,2757.6,2757.5,0.39094198]
[1643787718017,1.13536724,2757.6,2757.4,0.39094198]
[1643787718217,1.13536724,2757.5,2757.4,3.89094198]
[1643787719814,0.68807558,2758.0,2757.4,6.12908045]
[1643787720040,2.25730362,2758.3,2757.5,4.95652]
[1643787720041,0.68807558,2758.2,2757.5,4.95652]
[1643787720259,0.86927558,2758.4,2757.6,0.906495]
[1643787720459,0.68807558,2758.5,2757.6,0.906495]
[1643787720656,0.1812,2758.4,2757.9,0.25]
[1643787720856,0.1812,2758.5,2758.3,0.41862546]
[1643787721056,0.68807558,2758.6,2758.3,0.41862546]
[1643787721355,0.68807558,2758.6,2758.2,0.85563897]
[1643787721356,0.68807558,2758.6,2758.2,1.14008586]
[1643787721963,0.68807558,2758.6,2758.2,0.28444689]
[1643787722159,0.68807558,2758.6,2758.3,0.9063772]
[1643787722962,0.68807558,2758.7,2758.3,0.9063772]
[1643787723261,0.68807558,2758.6,2758.3,0.9063772]
[1643787723462,0.68807558,2758.7,2758.3,0.9063772]
[1643787724510,0.68807558,2758.7,2758.3,1.1563772]
[1643787724906,0.86927558,2758.8,2758.3,1.1563772]
[1643787725105,0.68807558,2758.8,2758.3,2.0627772]
[1643787727610,2.57942939,2758.7,2758.3,3.75]
[1643787727858,0.68807558,2758.6,2758.3,3.75]
[1643787729058,0.68807558,2758.7,2758.3,0.25]
[1643787729256,0.68807558,2758.6,2758.3,0.25]
[1643787729457,0.68807558,2758.7,2758.3,0.25]
[1643787729668,1.0,2758.8,2758.3,0.25]
[1643787729858,0.1812,2758.9,2758.3,0.25]
[1643787731070,1.1812,2759.0,2758.3,0.25]
[1643787733505,1.1812,2759.0,2758.2,0.90643]
[1643787733710,0.68807558,2758.9,2758.4,0.25]
[1643787734010,2.02380952,2758.8,2758.4,0.25]
[1643787734210,3.20500952,2758.8,2758.4,0.25]
[1643787735256,1.1812,2758.8,2758.4,0.25]
[1643787735457,1.0,2758.8,2758.4,0.25]
[1643787735657,1.1812,2758.9,2758.4,0.25]
[1643787736665,0.1812,2758.9,2758.4,0.25]
[1643787736864,1.1812,2758.9,2758.4,0.25]
[1643787737162,0.1812,2758.9,2758.4,0.25]
[1643787737370,3.51725837,2758.8,2758.4,0.25]
[1643787737571,0.1812,2758.7,2758.4,0.25]
[1643787737865,0.524,2758.6,2758.4,0.25]
[1643787738063,1.91977186,2758.5,2758.4,0.25]
[1643787738863,2.91977186,2758.5,2758.4,0.25]
[1643787739300,2.91977186,2758.5,2757.6,0.1812]
[1643787739502,0.90672,2758.3,2757.7,0.25]
[1643787739904,1.10357768,2758.2,2757.8,0.41754057]
[1643787743962,1.10357768,2758.1,2757.8,0.41754057]
[1643787744159,1.10357768,2758.0,2757.8,0.41754057]
[1643787744359,1.10357768,2758.4,2757.8,0.41754057]
[1643787744559,1.10470363,2758.3,2757.8,0.41754057]
[1643787744759,1.10470363,2758.2,2757.8,0.41754057]
[1643787744961,1.10470363,2758.4,2757.8,0.41754057]
[1643787747608,1.10470363,2758.4,2757.8,0.41666789]
[1643787750558,0.1812,2758.8,2757.8,1.80438219]
[1643787750754,4.68277558,2758.9,2757.9,0.3]
[1643787750955,0.1812,2758.8,2757.9,0.3]
[1643787751160,4.68277558,2758.9,2757.9,0.3]
[1643787751362,0.86927558,2759.0,2758.2,0.71334149]
[1643787751560,0.86927558,2759.0,2758.3,0.90641]
[1643787751759,0.86927558,2759.0,2758.3,1.15641]
[1643787751959,1.86927558,2759.0,2758.3,1.15641]
[1643787752161,1.1812,2759.0,2758.3,1.15641]
[1643787753861,1.1812,2759.0,2758.3,2.06282]
[1643787754309,1.1812,2759.0,2758.3,1.15641]
[1643787754310,1.86927558,2759.0,2758.3,1.15641]
[1643787754708,0.68807558,2758.9,2758.3,1.15641]
[1643787754909,1.86927558,2759.0,2758.3,1.15641]
[1643787755110,0.68807558,2758.9,2758.3,1.15641]
[1643787755912,1.86927558,2759.0,2758.3,1.15641]
[1643787756413,0.1812,2759.0,2758.3,1.15641]
[1643787757015,0.1812,2759.0,2758.3,2.9691905]
[1643787757218,6.09776751,2759.1,2758.3,2.9691905]
[1643787757219,6.27896751,2759.1,2758.3,2.9691905]
[1643787757416,5.40969193,2759.1,2758.3,2.9691905]
[1643787757859,5.40969193,2759.1,2758.3,3.2691905]
[1643787758463,6.09776751,2759.1,2758.3,3.2691905]
[1643787758660,5.40969193,2759.1,2758.3,3.2691905]
[1643787759663,5.40969193,2759.1,2758.5,0.90636]
[1643787759861,4.25804542,2759.1,2758.5,1.35508851]
[1643787760261,1.07224542,2759.1,2758.5,0.90636]
[1643787761527,1.07224542,2759.1,2758.5,1.8127]
[1643787762328,1.07224542,2759.1,2758.7,0.91605654]
[1643787762528,1.07224542,2759.1,2758.8,0.90632]
[1643787764631,1.86927558,2759.3,2758.8,0.90632]
[1643787764632,0.1812,2759.3,2758.8,0.90632]
[1643787764833,0.86927558,2759.5,2758.9,0.90614]
[1643787765035,0.91450362,2759.8,2759.1,0.90608]
[1643787765036,0.68807558,2759.8,2759.1,0.90608]
[1643787765262,2.55783108,2760.0,2759.2,0.19202039]
[1643787765263,0.68807558,2760.0,2759.2,0.19202039]
[1643787765466,0.1811,2760.2,2759.2,0.19202039]
[1643787765467,0.68807558,2760.2,2760.0,0.38036641]
[1643787765668,0.91450362,2760.5,2759.9,1.81151]
[1643787765669,0.68807558,2760.5,2759.9,1.81151]
[1643787765870,0.68807558,2760.6,2760.0,0.91609132]
[1643787766064,0.68807558,2760.7,2760.1,0.25]
[1643787766670,0.68807558,2760.8,2760.1,0.25]
[1643787766970,0.68807558,2760.8,2760.2,0.93218187]
[1643787767166,0.68807558,2760.8,2760.2,1.23218187]
[1643787767370,0.68807558,2760.8,2760.2,0.3]
[1643787767569,0.48807558,2760.8,2760.2,0.3]
[1643787767768,1.11670892,2760.7,2760.2,0.90579]
[1643787767971,1.11670892,2760.6,2760.2,0.90579]
[1643787768169,1.11670892,2760.9,2760.2,0.90579]
[1643787768571,1.11670892,2760.9,2760.2,1.64651241]
[1643787769006,1.11670892,2760.9,2760.2,0.90579]
[1643787770106,1.11670892,2760.9,2760.3,0.3]
[1643787770303,1.11670892,2760.9,2760.2,1.73824422]
[1643787770504,1.11670892,2760.9,2760.3,0.3]
[1643787770910,1.11670892,2760.9,2760.2,1.73824422]
[1643787771306,1.11670892,2760.9,2760.3,0.3]
[1643787772859,1.11670892,2760.9,2760.3,1.2057069]
[1643787773264,1.11670892,2760.9,2760.3,0.6]
[1643787773567,1.11670892,2760.9,2760.3,1.20571]
[1643787773762,1.11670892,2760.9,2760.3,1.38681]
[1643787773962,1.11670892,2760.8,2760.3,2.29237]
[1643787774160,1.11670892,2760.7,2760.3,2.29237]
[1643787774361,1.06994832,2761.1,2760.5,0.3]
[1643787774761,1.11451257,2761.0,2760.5,1.20562]
[1643787775163,1.11451257,2761.0,2760.5,1.50562]
[1643787775365,1.11451257,2761.0,2760.6,0.25]
[1643787776821,0.1811,2761.3,2760.6,1.4600962]
[1643787777025,2.19854242,2762.1,2760.8,0.91458212]
[1643787777026,0.1809,2761.8,2760.8,0.91458212]
[1643787777226,1.11300934,2761.7,2760.9,0.3]
[1643787777421,1.11300934,2761.6,2761.0,0.25]
[1643787777621,1.11300934,2761.5,2761.0,0.4806]
[1643787777825,3.24982134,2762.1,2761.2,0.87985258]
[1643787778023,1.11191778,2762.0,2761.2,1.17985258]
[1643787778224,1.11191778,2762.0,2761.2,1.47985258]
[1643787779423,1.11191778,2762.0,2761.2,1.17985258]
[1643787779720,1.11191778,2762.0,2761.2,2.38522158]
[1643787779921,1.11191778,2762.0,2761.4,0.90537]
[1643787781465,1.11191778,2762.0,2761.2,0.6]
[1643787781657,2.13091929,2761.9,2761.2,0.3]
[1643787781860,1.11191778,2761.8,2761.1,0.3]
[1643787782064,1.96572194,2761.7,2761.1,0.3]
[1643787782359,1.1809,2761.9,2761.1,0.3]
[1643787782360,1.11191778,2761.6,2761.1,0.3]
[1643787782562,1.11191778,2761.5,2761.1,0.3]
[1643787782760,2.13639941,2761.9,2761.1,0.3]
[1643787782960,1.110838,2761.8,2761.1,0.3]
[1643787783158,0.1809,2761.7,2761.1,0.3]
[1643787783359,1.110838,2761.6,2761.1,0.3]
[1643787783660,1.110838,2761.5,2761.1,0.3]
[1643787783859,1.110838,2761.8,2761.1,0.3]
[1643787784113,0.1809,2761.9,2761.1,0.3]
[1643787784114,1.11029752,2761.7,2761.1,0.3]
[1643787784307,1.11029752,2761.6,2761.1,0.3]
[1643787784606,2.89053446,2761.9,2761.0,0.25]
[1643787784811,4.98617241,2761.8,2761.0,0.25]
[1643787785008,1.29071406,2761.7,2761.0,0.25]
[1643787785209,3.94293341,2761.6,2761.0,0.25]
[1643787785409,1.29071406,2761.5,2761.0,0.25]
[1643787785612,0.87002953,2761.3,2760.4,1.1283]
[1643787785814,0.524,2761.2,2760.4,1.1283]
[1643787786011,2.49238407,2761.2,2760.4,1.1283]
[1643787786212,3.56246213,2761.2,2760.5,0.3]
[1643787786817,3.47474497,2761.2,2760.5,0.3]
[1643787787020,1.59407806,2761.2,2760.5,0.3]
[1643787787420,3.48877502,2761.2,2760.5,0.3]
[1643787787860,1.11406596,2761.1,2760.5,0.3]
[1643787788059,0.524,2761.1,2760.5,0.3]
[1643787788662,0.524,2761.1,2760.3,8.3325]
[1643787788868,2.43781987,2761.1,2760.3,4.0913]
[1643787789065,1.11418546,2761.0,2760.3,4.0913]
[1643787789270,2.55685543,2760.9,2760.2,0.1811]
[1643787789664,0.524,2760.9,2760.2,0.1811]
[1643787790469,0.524,2760.9,2760.1,1.7984]
[1643787790766,0.524,2760.9,2760.1,1.4984]
[1643787790967,0.524,2760.9,2760.1,1.1984]
[1643787791166,0.524,2760.9,2760.1,1.7984]
[1643787791369,2.45086221,2760.9,2760.1,1.7984]
[1643787791616,0.7051,2760.9,2760.1,1.7984]
[1643787791924,1.7051,2760.9,2760.1,1.7984]
[1643787792120,0.524,2760.9,2760.1,1.7984]
[1643787792317,0.77796254,2760.8,2760.1,1.7984]
[1643787792520,2.44533745,2760.7,2760.1,0.3]
[1643787792720,0.524,2760.7,2760.0,0.4811]
[1643787792923,2.59642061,2760.7,2760.0,0.1811]
[1643787793331,8.66505075,2760.6,2760.0,0.1811]
[1643787793623,7.2718588,2760.3,2760.0,0.1811]
[1643787793819,1.7051,2760.2,2760.0,0.1811]
[1643787794430,1.524,2760.2,2759.6,0.25]
[1643787794620,0.524,2760.2,2759.4,0.1811]
[1643787794826,0.524,2760.2,2759.9,0.77019186]
[1643787795865,0.524,2760.2,2759.9,1.07019186]
[1643787796865,1.25134639,2760.7,2759.9,1.37019186]
[1643787797071,1.63701561,2760.6,2760.0,0.90582]
[1643787797266,0.524,2760.6,2760.1,0.6]
[1643787799121,0.524,2760.6,2759.6,0.1811]
[1643787799122,3.11389764,2760.5,2759.6,0.1811]
[1643787799323,9.19189764,2760.4,2759.6,0.1811]
[1643787799519,1.29499764,2760.3,2759.5,0.1811]
[1643787799725,1.63789764,2760.2,2759.4,0.1811]
[1643787799919,1.11389764,2760.1,2759.4,0.1811]
[1643787800118,0.524,2760.0,2759.4,0.1811]
[1643787801722,1.11586,2759.9,2759.4,0.1811]
[1643787801922,0.524,2759.8,2759.4,0.1811]
[1643787802762,0.524,2759.8,2759.4,0.4811]
[1643787803364,0.524,2759.8,2759.4,0.3]
[1643787803573,0.524,2759.8,2759.3,0.4811]
[1643787803867,0.524,2759.8,2759.3,0.1811]
[1643787804073,0.524,2759.8,2759.1,0.1811]
[1643787804268,0.524,2759.8,2759.2,1.30482141]
[1643787804468,0.524,2759.8,2759.3,0.39873141]
[1643787804666,0.524,2759.8,2759.3,0.69873141]
[1643787804873,0.524,2759.8,2759.4,0.39873141]
[1643787806521,0.524,2759.8,2759.6,0.90599]
[1643787806729,0.1811,2760.2,2759.6,1.20599]
[1643787806929,1.11893187,2760.1,2759.7,0.39933709]
[1643787807126,1.11893187,2760.0,2759.7,0.39933709]
[1643787807325,1.11893187,2759.9,2759.6,1.20599]
[1643787807530,1.11893187,2760.2,2759.7,0.39941326]
[1643787807728,0.524,2760.3,2759.7,0.39941326]
[1643787807729,1.11977556,2760.1,2759.7,0.39941326]
[1643787807929,1.11977556,2760.0,2759.7,0.39941326]
[1643787808126,0.524,2760.3,2759.7,0.69941326]
[1643787808328,1.11976547,2760.2,2759.8,0.39941326]
[1643787811263,0.5,2760.0,2759.8,0.39941326]
[1643787811463,1.12104219,2759.9,2759.8,0.39941326]
[1643787811669,1.12099972,2759.9,2759.7,0.39941326]
[1643787811869,0.5,2760.0,2759.7,0.69941326]
[1643787812066,0.5,2760.0,2759.8,1.30533326]
[1643787812265,0.5,2760.0,2759.9,0.39941326]
[1643787812671,1.6209886,2760.0,2759.9,0.39941326]
[1643787812868,1.6209886,2760.0,2759.9,0.69941326]
[1643787815115,1.62144278,2760.0,2759.9,0.70008536]
[1643787818059,1.62144278,2760.0,2759.9,0.3]
[1643787818258,1.62144278,2760.0,2759.6,0.7811]
[1643787818459,1.62144278,2760.0,2759.7,0.40015547]
[1643787818460,1.12144278,2759.9,2759.7,0.40015547]
[1643787818759,1.12144278,2759.9,2759.7,0.70015547]
[1643787818963,1.12144278,2759.9,2759.8,0.40015547]
[1643787819361,1.12144278,2759.9,2759.8,0.70015547]
[1643787829011,0.5,2760.0,2759.8,0.70015547]
[1643787829213,0.5,2760.0,2759.9,0.40015547]
[1643787829415,1.63790017,2760.0,2759.9,0.40015547]
[1643787829613,1.63790017,2760.0,2759.9,0.70015547]
[1643787830612,0.5,2760.0,2759.9,0.70015547]
[1643787831418,1.65330076,2760.0,2759.9,0.70015547]
[1643787831621,0.49874108,2760.0,2759.9,0.70015547]
[1643787831822,1.65204184,2760.0,2759.9,0.70015547]
[1643787832222,1.63772994,2760.0,2759.9,0.70015547]
[1643787832422,1.63773002,2760.0,2759.9,0.70015547]
[1643787832623,0.49874108,2760.0,2759.9,0.70015547]
[1643787833074,1.63882833,2760.0,2759.9,0.70015547]
[1643787833275,0.49874108,2760.0,2759.9,0.70015547]
[1643787833481,1.63881889,2760.0,2759.9,0.70015547]
[1643787834075,0.49874108,2760.0,2759.9,0.70305778]
[1643787834275,1.63904451,2760.0,2759.9,0.70305778]
[1643787834478,0.49874108,2760.0,2759.9,0.70305778]
[1643787834682,1.63914833,2760.0,2759.9,0.70305778]
[1643787834880,0.49874108,2760.0,2759.9,0.70305778]
[1643787835580,1.63919356,2760.0,2759.9,0.70305778]
[1643787839817,1.63919356,2760.0,2759.9,1.00305778]
[1643787845113,1.63919356,2760.0,2759.9,0.40305778]
[1643787845321,4.32319356,2760.0,2759.9,0.40305778]
[1643787845524,4.32319356,2760.0,2759.3,1.08725]
[1643787845525,0.62884242,2759.5,2759.3,1.08725]
[1643787845819,1.14045248,2759.4,2759.1,0.1811]
[1643787846016,0.524,2759.6,2758.9,4.29762356]
[1643787846017,1.14045248,2759.3,2759.2,0.32936784]
[1643787846220,2.56023188,2759.3,2759.1,0.32936784]
[1643787846424,3.03336349,2759.2,2759.1,0.32936784]
[1643787846619,1.66445248,2759.2,2758.9,0.32936784]
[1643787846819,1.14045248,2759.1,2758.9,0.32936784]
[1643787847021,0.524,2759.0,2758.9,0.32936784]
[1643787847218,1.66445248,2759.0,2758.9,0.62936784]
[1643787849875,1.66445248,2759.0,2758.9,0.32936784]
[1643787850778,1.66445248,2759.0,2758.9,0.62936784]
[1643787852518,0.524,2759.0,2758.9,0.62936784]
[1643787862224,0.524,2759.0,2758.9,0.32936784]
[1643787862525,0.524,2759.0,2758.9,0.62936784]
[1643787865588,0.30435171,2759.0,2758.9,0.62936784]
[1643787867928,0.30435171,2759.0,2758.9,0.92936784]
[1643787868130,0.1812,2759.4,2758.9,0.92936784]
[1643787868330,1.59368636,2759.5,2759.0,0.32936784]
[1643787868533,1.21331345,2759.4,2759.3,0.36953342]
[1643787868732,4.1614,2759.9,2759.3,0.36953342]
[1643787868733,0.1812,2759.7,2759.3,0.69890126]
[1643787868926,0.49874108,2760.0,2759.4,0.32936784]
[1643787868927,1.21320595,2759.6,2759.4,0.32936784]
[1643787869129,0.49874108,2760.0,2759.5,4.12936784]
[1643787869327,1.21319448,2759.9,2759.6,1.53537324]
[1643787869527,1.21319448,2759.9,2759.7,0.32936784]
[1643787869731,1.21319448,2759.9,2759.6,1.4560054]
[1643787869929,1.21319448,2759.9,2759.7,0.29438208]
[1643787870371,1.21319448,2759.9,2759.8,0.91748746]
[1643787870777,1.21319448,2759.9,2759.8,1.21748746]
[1643787870984,1.21319448,2759.9,2759.8,1.81177917]
[1643787872581,0.49874108,2760.0,2759.8,1.81177917]
[1643787872780,0.49874108,2760.0,2759.9,0.29429171]
[1643787875044,1.7306548,2760.0,2759.9,0.29429171]
[1643787883344,1.7306548,2760.0,2759.8,0.91748746]
[1643787883544,1.75591372,2759.9,2759.6,0.25]
[1643787883741,3.66167784,2759.9,2759.6,0.25]
[1643787883940,1.23191372,2759.8,2759.6,0.25]
[1643787884141,2.23191372,2759.8,2759.6,0.25]
[1643787884343,1.23191372,2759.7,2759.6,0.25]
[1643787884641,1.23191372,2759.7,2759.6,1.0422463]
[1643787884844,1.23191372,2759.7,2759.6,1.32210643]
[1643787885044,1.23191372,2759.8,2759.6,1.32210643]
[1643787885276,1.23191372,2759.8,2759.7,0.27986013]
[1643787885880,1.23191372,2759.8,2759.2,0.4811]
[1643787886076,1.23191372,2759.8,2759.3,0.28419079]
[1643787886782,1.23191372,2759.8,2759.5,0.74954852]
[1643787886983,1.23191372,2759.8,2759.6,0.28419079]
[1643787887186,1.75591372,2759.8,2759.6,0.28419079]
[1643787887386,1.23191372,2759.7,2759.6,0.28419079]
[1643787892976,0.524,2759.8,2759.6,0.27856309]
[1643787893174,1.24487487,2759.7,2759.6,0.27856309]
[1643787897245,1.21184557,2759.7,2759.2,0.1811]
[1643787897439,1.21184557,2759.7,2758.9,0.25]
[1643787897440,1.24487487,2759.6,2759.0,0.1811]
[1643787897640,1.6116,2759.5,2759.1,0.26254086]
[1643787897843,1.24487487,2759.4,2758.5,0.52714472]
[1643787898041,1.24487487,2759.4,2758.6,0.24378203]
[1643787898042,0.524,2759.3,2758.6,0.24378203]
[1643787898244,1.24487487,2759.2,2758.8,0.75911442]
[1643787898443,0.524,2759.1,2758.9,0.24378203]
[1643787898646,1.24487487,2759.0,2758.9,0.24378203]
[1643787898842,1.76887487,2759.0,2758.9,0.24378203]
[1643787901581,1.76887487,2759.0,2758.6,0.24378203]
[1643787901781,1.28077297,2758.9,2758.7,0.24378203]
[1643787901982,1.80477297,2758.9,2758.8,0.24378203]
[1643787902183,1.80477297,2758.9,2758.7,0.88157625]
[1643787902383,0.524,2758.9,2758.8,0.24378203]
[1643787902785,5.374,2758.9,2758.3,0.1812]
[1643787902983,6.554,2758.7,2758.0,0.1812]
[1643787903183,6.554,2758.7,2757.9,0.53299381]
[1643787903184,0.7052,2758.6,2757.9,0.53299381]